Cogmind - Beta 10.1 @@@ ROGUE MODE // 2020.10.03 @ 23:53:48 Player: HOTSOUP Result: Destroyed by G-34 Mercenary with Small Laser Performance ------------- Evolutions (0) 0 Regions Visited (2) 400 Robots Destroyed (12) 60 Value Destroyed (147) 147 Prototype IDs (0) 0 Alien Tech Used (0) 0 Bonus (0) 0 TOTAL SCORE: 607 Bonus ------- None Cogmind --------- Core Integrity 0/250 Matter 300/300 Energy 109/125 System Corruption 3% Temperature Cool (168) Movement Flying (200) Ox2 Location -10/Mines Parts ------- > --- POWER (1) -------- Light Ion Engine > --- PROPULSION (2) --- Flight Unit > --- UTILITY (2) ------ Targeting Computer Targeting Computer > --- WEAPON (2) ------- Beam Rifle Beam Cannon > --- INVENTORY (4) ---- Flight Unit Flight Unit Flight Unit Peak State ------------ > --- POWER ------------ Light Ion Engine > --- PROPULSION ------- Flight Unit Flight Unit > --- UTILITY ---------- Targeting Computer Targeting Computer > --- WEAPON ----------- Beam Rifle Light Assault Rifle > --- INVENTORY -------- Flight Unit Flight Unit Flight Unit [Rating: 8] Favorites ----------- Power Light Ion Engine Engine Light Ion Engine Propulsion Flight Unit Flight Unit Flight Unit Utility Targeting Computer Processor Targeting Computer Weapon EM Pulse Gun Energy Gun EM Pulse Gun Energy Cannon Beam Cannon Ballistic Gun Light Assault Rifle Build | -11 -10 -10 ------- Run | Scr Mat Min Slots Evolved . | . . . Power . | . . . Propulsion . | . . . Utility . | . . . Weapon . | . . . Parts Attached 17 | 2 2 13 Power 2 | . . 2 Engine 2 | . . 2 Core . | . . . Reactor . | . . . Propulsion 7 | . 2 5 Treads . | . . . Leg . | . . . Wheel . | . . . Hover . | . . . Flight 7 | . 2 5 Utility 2 | . . 2 Device . | . . . Storage . | . . . Processor 2 | . . 2 Hackware . | . . . Protection . | . . . Artifact . | . . . Weapon 6 | 2 . 4 Energy Gun 3 | 2 . 1 Energy Cannon 1 | . . 1 Ballistic Gun 2 | . . 2 Ballistic Cannon . | . . . Launcher . | . . . Special Weapon . | . . . Impact Weapon . | . . . Slashing Weapon . | . . . Piercing Weapon . | . . . Special Melee Weapon . | . . . Unidentified Prototypes . | . . . Parts Lost 5 | . . 5 Power 1 | . . 1 Propulsion 2 | . . 2 Utility . | . . . Weapon 2 | . . 2 Highest Loss Streak 2 | . . 2 Average Slot Usage (%) 55 | . 41 58 Engine 5 | . . 6 Flight 25 | . 12 27 Processor 6 | . . 8 Energy Gun 11 | . 28 8 Energy Cannon 3 | . . 4 Ballistic Gun 2 | . . 3 Naked Turns . | . . . Heaviest Build 9 | 4 4 9 Greatest Support 8 | 3 8 8 Greatest Overweight (x) 1 | 1 1 1 Average Overweight (x) . | . . . Largest Inventory Capacity 4 | 4 4 4 Average Capacity 4 | 4 4 4 Most Carried 4 | . 1 4 Average Carried 1 | . . 2 Final Capacity 4 | 4 4 4 Final Carried 3 | . 1 3 Class Distribution -------------------- 61% | Mutant 38% | Scavenger-Mutant Dominant Class ---------------- Mutant | -10/Materials Mutant | -10/Mines Resources | -11 -10 -10 ----------- Run | Scr Mat Min Matter Collected 390 | 124 40 226 Remotely . | . . . Salvage Created 330 | . 34 296 Parts 19 | . 1 18 Haulers Intercepted . | . . . Recyclers Shooed . | . . . Parts Field Recycled . | . . . Retrieved Matter . | . . . Parts Self-Destructed . | . . . Prevented . | . . . Kills | -11 -10 -10 ------- Run | Scr Mat Min Combat Hostiles Destroyed 10 | . 2 8 Guns 9 | . 2 7 AOE 1 | . . 1 Classes Destroyed 4 | . 1 3 Recycler 2 | . . 2 Swarmer 7 | . 2 5 Sentry 1 | . . 1 Assembled 2 | . . 2 Best Kill Streak 3 | . 2 3 Combat Bots Only 3 | . 2 3 Max Kills in Single Turn 1 | . 1 1 Gunslinging . | . . . Exploded 1 | . . 1 Melee . | . . . Uniques/NPCs Destroyed . | . . . Combat | -11 -10 -10 -------- Run | Scr Mat Min Damage Taken 557 | . 73 484 Core 251 | . 43 208 Absorbed by Shields . | . . . Core Remaining (%) 100 | 100 . . Volleys Fired 36 | . 5 31 Largest 2 | . 2 2 Hottest 116 | . 90 116 Shots Fired 49 | . 10 39 Gun 43 | . 10 33 Cannon 6 | . . 6 Launcher . | . . . Special . | . . . Kinetic 14 | . . 14 Thermal 19 | . 5 14 Explosive . | . . . Electromagnetic 16 | . 5 11 Robot Hit Streak 15 | . 1 15 Robot Miss Streak 4 | . 4 1 Penetration Max . | . . . Secondary Targets . | . . . Shots Hit Robots 33 | . 2 31 Core Hits 16 | . 2 14 Critical Hits 1 | . . 1 Critical Kills . | . . . Critical Parts Destroyed 1 | . . 1 Melee Attacks . | . . . Impact . | . . . Slashing . | . . . Piercing . | . . . Sneak Attacks . | . . . Combat Hostiles . | . . . Follow-up Attacks . | . . . Damage Inflicted 429 | . 23 406 Guns 268 | . 23 245 Cannons 70 | . . 70 Explosions 91 | . . 91 Melee . | . . . Ramming . | . . . Kinetic 101 | . . 101 Thermal 231 | . 13 218 Explosive . | . . . Electromagnetic 97 | . 10 87 Impact . | . . . Slashing . | . . . Piercing . | . . . Highest Corruption 3 | . . 3 Average Corruption 3 | . . 3 Corruption Purged . | . . . Effects 8 | . . 8 Message Errors 1 | . . 1 Matter Fused 2 | . . 2 Heat Flow Errors 1 | . . 1 Energy Discharges 1 | . . 1 Data Loss (minor) 1 | . . 1 Targeting Errors 2 | . . 2 Overload Shots . | . . . Overflow Damage . | . . . Projectiles . | . . . Explosions . | . . . Melee . | . . . Knockbacks . | . . . Impact . | . . . Kinetic . | . . . Secondary . | . . . Self-Inflicted Damage . | . . . Shots . | . . . Rammed . | . . . Targets Rammed . | . . . Kicked . | . . . Crushed . | . . . Highest Temperature 248 | . 75 248 Average Temperature 61 | . 37 68 Received Heat Transfer 114 | . . 114 Siege Activations . | . . . Robots Corrupted . | . . . Combat Hostiles . | . . . Parts Fried . | . . . Impact Corruptions . | . . . Robots Melted . | . . . Combat Hostiles . | . . . Parts Melted . | . . . Heat Transferred 433 | . 37 396 Parts Sabotaged . | . . . Parts Stolen . | . . . Parts Stripped . | . . . Power Chain Reactions 2 | . . 2 Missiles Intercepted . | . . . Alert | -11 -10 -10 ------- Run | Scr Mat Min Peak Influence 182 | . 70 182 Initial 27 | . . 27 Average 82 | . 35 94 Maximum Alert Level . | . . . Low Security (%) 100 | 100 100 100 Level 1 . | . . . Level 2 . | . . . Level 3 . | . . . Level 4 . | . . . Level 5 . | . . . High Security . | . . . Max Security . | . . . Squads Dispatched 1 | . 1 . Investigation . | . . . Extermination . | . . . Reinforcement 1 | . 1 . Assault . | . . . Garrison . | . . . Intercept . | . . . Construction Impeded . | . . . Haulers Reinforced . | . . . Stealth | -11 -10 -10 --------- Run | Scr Mat Min Distress Signals . | . . . Communications Jammed . | . . . Distress Signals . | . . . Times Spotted 29 | . 9 20 Peak Tracking Total 8 | . 6 8 Tactical Retreats 3 | . . 3 Traps | -11 -10 -10 ------- Run | Scr Mat Min Traps Triggered . | . . . Indirectly . | . . . Trap Hack Attempts . | . . . Triggered . | . . . Disarmed . | . . . Reprogrammed . | . . . Reused . | . . . Traps Extracted . | . . . Installed . | . . . Triggered . | . . . Machines | -11 -10 -10 ---------- Run | Scr Mat Min Machines Disabled 2 | . 1 1 Max in Single Turn 1 | . 1 1 Machines Sabotaged . | . . . Garrisons Compromised . | . . . Overloaded Fab Kills . | . . . Fab Network Shutdowns . | . . . Hacking | -11 -10 -10 --------- Run | Scr Mat Min Machines Accessed . | . . . Terminals . | . . . Fabricators . | . . . Repair Stations . | . . . Recycling Units . | . . . Scanalyzers . | . . . Garrison Access . | . . . Total Hacks . | . . . Successful . | . . . Failed . | . . . Catastrophic . | . . . Database Lockouts . | . . . Manual . | . . . Terminals . | . . . Fabricators . | . . . Repair Stations . | . . . Recycling Units . | . . . Scanalyzers . | . . . Garrison Access . | . . . Terminal Hacks . | . . . Fabricator Hacks . | . . . Repair Station Hacks . | . . . Recycling Unit Hacks . | . . . Scanalyzer . | . . . Garrison Access Hacks . | . . . Unauthorized Hacks . | . . . Terminals . | . . . Fabricators . | . . . Repair Stations . | . . . Recycling Units . | . . . Scanalyzers . | . . . Garrison Access . | . . . Data Cores Recovered . | . . . Used . | . . . Hacking Detections . | . . . Full Trace Events . | . . . Feedback Events . | . . . Feedback Blocked . | . . . Robot Schematics Acquired . | . . . Robots Built . | . . . Matter . | . . . Time . | . . . Total Robot Build Rating . | . . . Part Schematics Acquired . | . . . Parts Built . | . . . Matter . | . . . Time . | . . . Total Part Build Rating . | . . . Parts Repaired . | . . . Time . | . . . Parts Recycled . | . . . Recycled Matter . | . . . Retrieved Matter . | . . . Retrieved Components . | . . . Parts Scanalyzed . | . . . Part Schematics Acquired . | . . . Parts Damaged . | . . . Bothacking | -11 -10 -10 ------------ Run | Scr Mat Min Used RIF Installer . | . . . Robots Hacked . | . . . Non-combat . | . . . Combat . | . . . Robot Hacks Applied . | . . . Relay Couplers Released . | . . . Robots Rewired . | . . . Allies Hacked . | . . . Hacks Repelled . | . . . Allies | -11 -10 -10 -------- Run | Scr Mat Min Total Allies . | . . . Largest Group . | . . . Highest-Rated Group . | . . . Highest-Rated Ally . | . . . Total Orders . | . . . Ally Attacks . | . . . Total Damage . | . . . Kills . | . . . Allies Corrupted . | . . . Allies Melted . | . . . Intel | -11 -10 -10 ------- Run | Scr Mat Min Robot Analysis Total . | . . . Derelict Logs Recovered 2 | . . 2 Drone Launches . | . . . Drone Recoveries . | . . . Exploration | -11 -10 -10 ------------- Run | Scr Mat Min Turns Passed 689 | 32 98 559 Spaces Moved 535 | 33 90 412 Core 72 | 33 39 . Treads . | . . . Legs . | . . . Wheels . | . . . Hover . | . . . Flight 463 | . 51 412 Fastest Speed 37 | 50 37 37 Average Speed 56 | 89 64 52 Slowest Speed 117 | 100 100 117 Overloaded Moves . | . . . Propulsion Burnouts . | . . . Robots Hopped 9 | . 6 3 Cave-ins Triggered . | . . . Exploration Rate (%) 32 | 4 32 60 Regions Visited 2 Branch Regions 1 Pre-discovered Areas . | . . . Known Exits Taken . | . . . Unknown Exits Taken 2 | 1 1 . Scrap Searched . | . . . Spaces Dug . | . . . Terrain Destroyed 11 | . . 11 Melee . | . . . Projectile . | . . . AOE 11 | . . 11 Terrain Rammed . | . . . Walls Destroyed . | . . . Machines Disabled . | . . . Actions | -11 -10 -10 --------- Run | Scr Mat Min Total 863 | 34 112 717 Wait 277 | . 21 256 Move 518 | 32 80 406 Hop 6 | . 3 3 Pick Up 4 | . 1 3 Fast Attach 10 | 2 2 6 Attach 2 | . . 2 Detach . | . . . Swap 5 | . . 5 Drop 5 | . . 5 Fire 36 | . 5 31 Melee . | . . . Ram . | . . . Kick . | . . . Crush . | . . . Escape Stasis . | . . . Rewire . | . . . Trap . | . . . Miscellaneous . | . . . Route ------- -11/Scrapyard -10/Materials -10/Mines (discovered 2 exits: *Mat x2) History --------- Turn | Location | Event 5 | -11/Scrapyard | Discovered new exit (range 16) 33 | -11/Scrapyard | Entered Materials 94 | -10/Materials | Discovered new exit (range 7) 131 | -10/Materials | Entered Mines 131 | -10/Mines | Discovered new exit (range 10) 136 | -10/Mines | Identified exit to Materials 189 | -10/Mines | Assembled infested the area 302 | -10/Mines | Build established: Mutant 405 | -10/Mines | Core integrity fell below 50% 428 | -10/Mines | Learned 2 Materials zone layouts 476 | -10/Mines | Core integrity fell below 20% 690 | -10/Mines | Destroyed by G-34 Mercenary with Small Laser Last Messages --------------- 00530_ Acquired 15 matter. 00534_ Acquired Targeting Computer. 00537_ Dropped Lgt. Assault Rifle. 00538_ Acquired Beam Cannon. 00544_ Acquired 46 matter. 00574_ K-01 Serf collects debris. 00575_ System corrupted: Energy discharge (-42). 00577_ K-01 Serf collects debris. 00620_ System corrupted: Matter fused (-9). 00629_ K-01 Serf collects debris. 00642_ System corrupted: Beam Cannon targeting data glitched. 00645_ as-05776 suffers critical hit. 00645_ Destroyed Asb. Rifle. 00648_ R-06 Scavenger collects Wheel. 00648_ as-05776 destroyed. 00650_ R-06 Scavenger collects Med. Matter Pod. 00653_ R-06 Scavenger collects Wheel. 00660_ Acquired 9 matter. 00683_ Core Extractor disabled. 00685_ Flight Unit destroyed. Map ----- +----------------------------------------------------+ | ??????????????# #%!###########" | | ???????????#??# #!*#??######### | | ???????????# # %#??# | | ???????????# # %##?# | | ????????#### ####% !### ####### | | ????????# ### < #?????? | | ????????# ## ####?????? | | ????????# ### #????????? | | ????????# ! * ##????##### | | ????????#### %!% ####???# | | ???????????## * #### ##??# | | ????????????## ##?# ##?# ## | | ?????????????# #### ##????? | | ????????????## ## #????? | | ???????????## #????? | | ??????????## !%! #????? | | ?????######= = ###????? | | ?????# !=%! ##??????? | | ?????# =*= #???????? | | ?????# ###### ????? | | ?????# #????## ???? | | ?????# #?????# ########???? | | ?????# #?????# ####??????????? | | ?????# #?????####?????????????? | | ?????# #??????????????????####? | | ?????# @#?????????????????## ## | | ?????# g ???????????????## ! | | ?????## g ""??????????#### * | | ??????# """#???????## # | | ??????T ""#???????# | | ??????# #???????# ## | | ??????? #???????## #### | | ???????#######????????####??## | | ?????????????????????????????### | | ???????????????????????????????? | | | | | | | | | | | | | | | | | | | | | | | | | | | | | | | +----------------------------------------------------+ Best States ------------- Heat Dissipation 25 Energy Generation 10 Energy Capacity 125 Matter Stores 300 Matter Capacity 300 Sight Range 16 Terrain Scan Density 10 Evasion (%) 62 Targeting Accuracy 10 Item Schematics ----------------- None Robot Schematics ------------------ None Fabricated ------------ Nothing Alien Tech Used ----------------- None Achievements -------------- None Challenges ------------ None Game ------ Seed GhostActuatorBoosters Manual? 0 Play Time 00:12:00 Cumulative 91.5 hours Start 2020.10.03 @ 23:46:11 End 2020.10.03 @ 23:53:48 Sessions 1 Manual Loads 0 Difficulty Rogue Special Mode None Game No. 131 Rogue 107 Adventurer 22 Explorer 2 Win Type - Total 1 Types 1/0/0/0/0/0/0/0/0 Lore% 46 Gallery% 51 Achievement% 42 Wizard Run 0 Options --------- ASCII 0 Keyboard 0 Movement Numpad Keybinds 0 Fullscreen 1 Font 14/SmallcapsGlow Map View 84x54 Tactical HUD 1 Map Filters NONE Filters NONE Steam 1 RUN: 9a9e47f7-05a3-499a-82e4-f10a85d04dbd